bitfinex/quotes_BTCUSD_20250513
["timestamp","ask_amount","ask_price","bid_price","bid_amount"]
[1747148453478,0.12557416,103200.0,103190.0,3.86437544]
[1747148453921,0.3193726,103200.0,103190.0,3.84937544]
[1747148454237,0.3193726,103200.0,103190.0,2.91764544]
[1747148454238,0.31068353,103200.0,103190.0,2.91764544]
[1747148454443,0.32037345,103200.0,103190.0,2.91764544]
[1747148455255,0.03975807,103200.0,103190.0,2.91764544]
[1747148455482,0.03975798,103200.0,103190.0,2.93294544]
[1747148455708,0.0484479,103200.0,103190.0,2.93294544]
[1747148455898,0.0484479,103200.0,103190.0,2.91764544]
[1747148456124,0.03875798,103200.0,103190.0,2.91764544]
[1747148456545,0.03875798,103200.0,103190.0,2.94944544]
[1747148456965,0.02906825,103200.0,103190.0,2.94944544]
[1747148457250,0.03509405,103210.0,103200.0,0.19379844]
[1747148457486,0.24825121,103210.0,103200.0,3.83360665]
[1747148457708,0.05447154,103210.0,103200.0,3.84587036]
[1747148457936,0.06416052,103210.0,103200.0,3.84587036]
[1747148458150,0.05447154,103210.0,103200.0,3.84587036]
[1747148458371,0.0157175,103210.0,103200.0,4.21216018]
[1747148458595,0.03509442,103210.0,103200.0,4.21216018]
[1747148458818,0.03509442,103210.0,103200.0,4.22826018]
[1747148459034,0.03509442,103210.0,103200.0,4.22826028]
[1747148459473,0.03509442,103210.0,103200.0,4.25001348]
[1747148459694,0.04478312,103210.0,103200.0,4.25001348]
[1747148459903,0.03509442,103210.0,103200.0,4.25001348]
[1747148460099,0.04478321,103210.0,103200.0,4.22422356]
[1747148460291,0.04478312,103210.0,103200.0,4.23391348]
[1747148460517,0.03509442,103210.0,103200.0,4.23391348]
[1747148460718,0.03509442,103210.0,103200.0,4.2436033]
[1747148460957,0.0157175,103210.0,103200.0,4.2436033]
[1747148461208,0.0157175,103210.0,103200.0,4.2785821]
[1747148461475,0.0157175,103210.0,103200.0,4.3758915]
[1747148462462,0.0157175,103210.0,103200.0,4.36720224]
[1747148462681,0.0157175,103210.0,103200.0,4.36248185]
[1747148462907,0.0157575,103210.0,103200.0,4.36248185]
[1747148463457,0.0157575,103210.0,103200.0,1.43119285]
[1747148463662,0.0157575,103210.0,103200.0,1.43319285]
[1747148463915,0.0157575,103210.0,103200.0,4.38858085]
[1747148464479,0.02544563,103210.0,103200.0,4.37889159]
[1747148464700,0.0157575,103210.0,103200.0,4.38858085]
[1747148466995,0.0157575,103210.0,103200.0,4.36314427]
[1747148467247,0.0157575,103210.0,103200.0,4.38857717]
[1747148467703,0.02544563,103210.0,103200.0,4.38857717]
[1747148468815,0.02544563,103210.0,103200.0,4.35954902]
[1747148469032,0.02544563,103210.0,103200.0,4.37892782]
[1747148469485,0.0157575,103210.0,103200.0,4.37892782]
[1747148470118,0.0157575,103210.0,103200.0,4.36923856]
[1747148470335,0.02544563,103210.0,103200.0,4.37892791]
[1747148470550,0.02544563,103210.0,103200.0,4.38861717]
[1747148470774,0.03513405,103210.0,103200.0,4.35954902]
[1747148470985,0.02544563,103210.0,103200.0,4.3789282]
[1747148471198,0.03513386,103210.0,103200.0,4.38861755]
[1747148471414,0.03513386,103210.0,103200.0,4.3789282]
[1747148471645,0.04482228,103210.0,103200.0,4.03102651]
[1747148471924,0.03513395,103210.0,103200.0,4.0504056]
[1747148472339,0.02544563,103210.0,103200.0,4.0504056]
[1747148472554,0.03513386,103210.0,103200.0,4.0504056]
[1747148472775,0.03513386,103210.0,103200.0,4.04071615]
[1747148472987,0.02544563,103210.0,103200.0,4.03480569]
[1747148473210,0.03513395,103210.0,103200.0,4.02511577]
[1747148473422,0.03513395,103210.0,103200.0,4.03480522]
[1747148474408,0.03513395,103210.0,103200.0,4.37301746]
[1747148474797,0.03513395,103210.0,103200.0,4.36332801]
[1747148475000,0.05451134,103210.0,103200.0,2.98480728]
[1747148475322,0.04482237,103210.0,103200.0,3.03027647]
[1747148475529,0.02544563,103210.0,103200.0,3.05516592]
[1747148475745,0.03513395,103210.0,103200.0,3.04547647]
[1747148475941,0.02544563,103210.0,103200.0,3.05516592]
[1747148476140,0.02544563,103210.0,103200.0,3.06485527]
[1747148476325,0.03513386,103210.0,103200.0,3.06485527]
[1747148476525,0.04482228,103210.0,103200.0,3.04547647]
[1747148476920,0.04482228,103210.0,103200.0,3.03578693]
[1747148477104,0.04482228,103210.0,103200.0,3.02058693]
[1747148477300,0.05451079,103210.0,103200.0,3.00418693]
[1747148477513,0.05451079,103210.0,103200.0,3.01387657]
[1747148477715,0.05451079,103210.0,103200.0,3.02356611]
[1747148478135,0.04482228,103210.0,103200.0,3.03996611]
[1747148478977,0.03513386,103210.0,103200.0,3.03996611]
[1747148479388,0.04482228,103210.0,103200.0,3.04965556]
[1747148479823,0.04482228,103210.0,103200.0,3.03996611]
[1747148480056,0.04482228,103210.0,103200.0,3.01387657]
[1747148480540,0.04482228,103210.0,103200.0,3.02356611]
[1747148481382,0.05451098,103210.0,103200.0,2.9944972]
[1747148481622,0.25931475,103210.0,103200.0,0.7232612]
[1747148481868,0.25931475,103210.0,103200.0,1.38257364]
[1747148482289,0.24962605,103210.0,103200.0,1.1887752]
[1747148482511,0.24962605,103210.0,103200.0,0.9697662]
[1747148483438,0.39989304,103210.0,103200.0,0.00909429]
[1747148483676,0.34693545,103210.0,103200.0,0.00909429]
[1747148484146,0.35599705,103210.0,103200.0,0.00909429]
[1747148484374,0.35599705,103210.0,103200.0,0.00204]
[1747148485254,0.24521895,103180.0,103170.0,0.33821224]
[1747148485718,0.24521895,103180.0,103170.0,0.34426935]
[1747148486000,0.24521895,103180.0,103170.0,0.68426935]
[1747148486253,0.38643365,103180.0,103170.0,0.00605711]
[1747148486503,0.34252835,103180.0,103170.0,0.00905711]
[1747148486737,0.34252835,103180.0,103170.0,0.01205711]
[1747148486976,0.34252835,103180.0,103170.0,0.006]
[1747148487666,0.20354735,103170.0,103160.0,4.852e-05]
[1747148487889,0.33235675,103170.0,103160.0,4.852e-05]
[1747148489437,0.2447398,103170.0,103160.0,1.01590435]
[1747148489813,0.2457398,103170.0,103160.0,1.01590435]
[1747148490025,0.23604735,103170.0,103160.0,1.01590435]
[1747148491173,0.001,103170.0,103160.0,1.35590435]
[1747148491384,0.0300767,103170.0,103160.0,1.36559802]
[1747148491600,0.001,103170.0,103160.0,1.71956064]
[1747148491805,0.001,103170.0,103160.0,1.83625626]
[1747148492031,0.001,103170.0,103160.0,1.86775626]
[1747148492245,0.03880578,103180.0,103170.0,0.5338548]
[1747148492444,0.03880578,103180.0,103170.0,3.29061128]
[1747148492656,0.03880578,103180.0,103170.0,3.27555445]
[1747148492867,0.23264179,103180.0,103170.0,2.93734221]
[1747148493086,0.22295065,103180.0,103170.0,1.12490621]
[1747148493303,0.25455065,103180.0,103170.0,1.12490621]
[1747148493519,0.25455065,103180.0,103170.0,0.84952041]
[1747148493731,0.33247711,103180.0,103170.0,0.00705717]
[1747148493944,0.33247711,103180.0,103170.0,0.00805717]
[1747148493945,0.37731558,103180.0,103170.0,0.00805717]
[1747148494154,0.37731558,103180.0,103170.0,0.002]
[1747148495256,0.2132398,103170.0,103160.0,0.67826076]
[1747148495455,0.2445398,103170.0,103160.0,0.67826076]
[1747148495579,0.2445798,103170.0,103160.0,0.67830076]
[1747148496222,0.2445798,103170.0,103160.0,1.52962335]
[1747148496429,0.23488735,103170.0,103160.0,1.53062335]
[1747148496919,0.23488735,103170.0,103160.0,1.53668083]
[1747148497320,0.23488735,103170.0,103160.0,1.53768083]
[1747148497554,0.23488735,103170.0,103160.0,1.53162335]
[1747148498788,0.2251948,103170.0,103160.0,0.97962035]
[1747148499394,0.2251948,103170.0,103160.0,0.68030076]
[1747148499607,0.2251948,103170.0,103160.0,0.00208852]
[1747148500625,0.2251948,103170.0,103160.0,0.34030076]
[1747148501453,0.2251948,103170.0,103160.0,0.00208852]
[1747148503239,0.37413822,103170.0,103160.0,0.00208852]
[1747148503884,0.23656708,103160.0,103150.0,0.33821224]
[1747148504100,0.23656708,103160.0,103150.0,0.33826078]
[1747148504353,0.0426932,103160.0,103150.0,0.72451516]
[1747148504602,0.019425,103170.0,103160.0,0.19387359]
[1747148504851,0.23266462,103170.0,103160.0,2.69164483]
[1747148505097,0.23566708,103160.0,103150.0,0.00610627]
[1747148505315,0.23566708,103160.0,103150.0,1.54088989]
[1747148505559,0.23566708,103160.0,103150.0,1.20267765]
[1747148505793,0.23570708,103160.0,103150.0,1.20271765]
[1747148506052,0.23570708,103160.0,103150.0,1.87487216]
[1747148506524,0.23570708,103160.0,103150.0,1.89545187]
[1747148506944,0.23570708,103160.0,103150.0,1.90251003]
[1747148508199,0.23570708,103160.0,103150.0,0.36772641]
[1747148508639,0.23570708,103160.0,103150.0,0.70593865]
[1747148509642,0.23570708,103160.0,103150.0,0.89983103]
[1747148509830,0.23570708,103160.0,103150.0,0.70593865]
[1747148510952,0.23570708,103160.0,103150.0,1.96387403]
[1747148511358,0.23570708,103160.0,103150.0,1.93599603]
[1747148512156,0.23570708,103160.0,103150.0,1.89211803]
[1747148512359,0.23570708,103160.0,103150.0,1.76436803]
[1747148512567,0.23570708,103160.0,103150.0,1.67284203]
[1747148513014,0.03512669,103160.0,103150.0,1.67284203]
[1747148513214,0.02912036,103160.0,103150.0,1.67284203]
[1747148513419,0.01942669,103160.0,103150.0,1.67284203]
[1747148513827,0.22299395,103160.0,103150.0,1.67284203]
[1747148514806,0.24470075,103160.0,103150.0,1.04503103]
[1747148516192,0.24470075,103160.0,103150.0,0.85113865]
[1747148516398,0.23500726,103160.0,103150.0,0.85113865]
[1747148516601,0.23500726,103160.0,103150.0,0.51292641]
[1747148516806,0.23500726,103160.0,103150.0,0.85113865]
[1747148519867,0.19391359,103160.0,103150.0,1.04503103]
[1747148520115,0.21330065,103160.0,103150.0,1.04503103]
[1747148520358,4e-05,103160.0,103150.0,1.08001988]
[1747148520567,4e-05,103160.0,103150.0,1.55032972]
[1747148520789,0.001,103170.0,103160.0,0.25391349]
[1747148520993,0.001,103170.0,103160.0,3.88576597]
[1747148521198,0.001,103170.0,103160.0,4.33761622]
[1747148521464,0.001,103170.0,103160.0,4.34367438]
[1747148523262,0.22393216,103170.0,103160.0,1.26260999]
[1747148523475,0.24493999,103170.0,103160.0,1.09522899]
[1747148523925,0.22953999,103170.0,103160.0,1.09522899]
[1747148524136,0.22953999,103170.0,103160.0,1.09922899]
[1747148524346,0.04537726,103170.0,103160.0,3.03539699]
[1747148524548,0.02038397,103170.0,103160.0,3.04509048]
[1747148524670,0.02038397,103170.0,103160.0,3.05478387]
[1747148524873,0.03007604,103170.0,103160.0,3.06447717]
[1747148525080,0.03007604,103170.0,103160.0,3.05478387]
[1747148525734,0.03976822,103170.0,103160.0,3.05478387]
[1747148525939,0.04946067,103170.0,103160.0,3.03539699]
[1747148526143,0.04946067,103170.0,103160.0,3.05478424]
[1747148526756,0.24331622,103170.0,103160.0,3.03539699]
[1747148526966,0.24023263,103170.0,103160.0,1.25540199]
[1747148527181,0.24023263,103170.0,103160.0,0.91718975]
[1747148527400,0.24023263,103170.0,103160.0,1.30799199]
[1747148527836,0.02038406,103170.0,103160.0,1.30799199]
[1747148528054,0.001,103170.0,103160.0,1.66559111]
[1747148528260,0.01069208,103170.0,103160.0,0.96977975]
[1747148528470,0.03007652,103170.0,103160.0,1.33707273]
[1747148528679,0.02038425,103170.0,103160.0,1.34676612]
[1747148528940,0.02038425,103170.0,103160.0,1.33707273]
[1747148529109,0.001,103170.0,103160.0,1.33707273]
[1747148529329,0.001,103170.0,103160.0,1.71067129]
[1747148529746,0.001,103170.0,103160.0,1.70097827]
[1747148529957,0.01069208,103170.0,103160.0,1.70097827]
[1747148530204,0.001,103170.0,103160.0,1.70097827]
[1747148530412,0.001,103170.0,103160.0,1.71067129]
[1747148530626,0.001,103170.0,103160.0,1.71067147]
[1747148530870,0.00104,103170.0,103160.0,1.71067082]
[1747148532058,0.00104,103170.0,103160.0,1.7009778]
[1747148532263,0.02042435,103170.0,103160.0,1.23639623]
[1747148532552,0.05490954,103170.0,103160.0,1.69191199]
[1747148532797,0.2390716,103170.0,103160.0,1.4980384]
[1747148533011,0.2451798,103170.0,103160.0,1.69191199]
[1747148533218,0.23548735,103170.0,103160.0,0.6883104]
[1747148533415,0.23548735,103170.0,103160.0,0.01009816]
[1747148533630,0.23548735,103170.0,103160.0,0.6883104]
[1747148533835,0.23548735,103170.0,103160.0,0.3483104]
[1747148534025,0.23548735,103170.0,103160.0,0.3463104]
[1747148534207,0.23548735,103170.0,103160.0,0.6863104]
[1747148534589,0.23548735,103170.0,103160.0,1.09900899]
[1747148534780,0.23548735,103170.0,103160.0,1.09700899]
[1747148535193,0.21968735,103170.0,103160.0,1.09700899]
[1747148535386,0.02583227,103170.0,103160.0,1.09700899]
[1747148535654,0.0301168,103170.0,103160.0,1.09700899]
[1747148535861,0.02042415,103170.0,103160.0,1.12608935]
[1747148536063,0.00104,103170.0,103160.0,1.11639615]
[1747148536269,0.01073189,103170.0,103160.0,1.24547669]
[1747148536411,0.01073189,103170.0,103160.0,3.86265254]
[1747148536412,0.02042387,103170.0,103160.0,3.86265254]
[1747148536654,0.03980831,103170.0,103160.0,3.85295915]
[1747148537256,0.02042387,103170.0,103160.0,3.85295915]
[1747148537466,0.00104,103170.0,103160.0,4.23605091]
[1747148537694,0.01073208,103170.0,103160.0,4.22635798]
[1747148537908,0.01073198,103170.0,103160.0,4.23605109]
[1747148538127,0.00104,103170.0,103160.0,4.23605044]
[1747148538449,0.01073189,103170.0,103160.0,4.22635742]
[1747148539069,0.00104,103170.0,103160.0,4.33335984]
[1747148539281,0.00104,103170.0,103160.0,4.34975984]
[1747148540296,0.01073208,103170.0,103160.0,3.93088139]
[1747148540466,0.0301169,103170.0,103160.0,1.73741499]
[1747148540742,0.0301169,103170.0,103160.0,1.56864166]
[1747148540918,0.24617962,103170.0,103160.0,0.70950816]
[1747148541148,0.24617962,103170.0,103160.0,0.6843104]
[1747148541354,0.24617962,103170.0,103160.0,1.08691399]
[1747148541771,0.24617962,103170.0,103160.0,0.34609816]
[1747148541898,0.24617962,103170.0,103160.0,0.6843104]
[1747148544005,0.24617962,103170.0,103160.0,0.87818399]
[1747148544243,0.24617962,103170.0,103160.0,0.6843104]
[1747148544688,0.24617962,103170.0,103160.0,0.87818399]
[1747148545714,0.23366414,103170.0,103160.0,1.04012699]
[1747148545918,0.00104,103170.0,103160.0,1.40741913]
[1747148546300,0.00104,103170.0,103160.0,1.42341913]
[1747148547282,0.02042425,103170.0,103160.0,1.04412699]
[1747148547548,0.25547216,103170.0,103160.0,1.04412699]
[1747148547898,0.24577989,103170.0,103160.0,0.8502534]
[1747148548101,0.24577989,103170.0,103160.0,0.01009816]
[1747148548300,0.24577989,103170.0,103160.0,0.35009816]
[1747148548509,0.24577989,103170.0,103160.0,0.6883104]
[1747148548903,0.24577989,103170.0,103160.0,0.6863104]
[1747148549099,0.24577989,103170.0,103160.0,0.6843104]
[1747148549548,0.24577989,103170.0,103160.0,0.34609816]
[1747148549726,0.24577989,103170.0,103160.0,0.6843104]
[1747148549926,0.24577989,103170.0,103160.0,0.45584031]
[1747148550182,0.24577989,103170.0,103160.0,0.33825224]
[1747148550823,0.03632406,103170.0,103160.0,1.56777783]
[1747148550991,0.23366368,103170.0,103160.0,1.56777783]
[1747148551232,0.01073189,103170.0,103160.0,1.91568356]
[1747148551443,0.00104,103170.0,103160.0,1.92537676]
[1747148551614,0.00104,103170.0,103160.0,2.06347918]
[1747148552029,0.00104,103170.0,103160.0,2.40347918]
[1747148552695,0.0302,103190.0,103180.0,0.20352771]
[1747148552941,0.20352095,103200.0,103190.0,0.21319866]
[1747148552942,0.04078926,103200.0,103190.0,0.21319866]
[1747148553164,0.02558926,103200.0,103190.0,3.48741747]
[1747148553382,0.01937861,103200.0,103190.0,3.48741747]
[1747148553606,0.0565062,103210.0,103190.0,3.516489]
[1747148553819,0.2696637,103210.0,103200.0,0.53201068]
[1747148554280,0.26980926,103210.0,103200.0,0.53201068]
[1747148554419,0.05665148,103210.0,103200.0,0.53201068]
[1747148554666,0.07051776,103210.0,103200.0,2.71900792]
[1747148554865,0.25460901,103210.0,103200.0,2.38079568]
[1747148555133,0.27040901,103210.0,103200.0,1.50252868]
[1747148555957,0.03176306,103210.0,103200.0,1.86012048]
[1747148556156,0.03523951,103210.0,103200.0,1.84074092]
[1747148556374,0.03623951,103210.0,103200.0,1.85043084]
[1747148556578,0.05561672,103210.0,103200.0,1.85043084]
[1747148557216,0.05561681,103210.0,103200.0,1.85043084]
[1747148557423,0.04592802,103210.0,103200.0,1.22960266]
[1747148557636,0.04592802,103210.0,103200.0,4.17530084]
[1747148557850,0.01686306,103210.0,103200.0,4.20436937]
[1747148558390,0.02655119,103210.0,103200.0,4.20436956]
[1747148558588,0.01686306,103210.0,103200.0,4.24432666]
[1747148559245,0.01686306,103210.0,103200.0,4.2346374]
[1747148559556,0.01686306,103210.0,103200.0,4.24432666]
[1747148559962,0.02555129,103210.0,103200.0,4.24432675]
[1747148560169,0.01586306,103210.0,103200.0,4.24432609]
[1747148560376,0.01586306,103210.0,103200.0,4.34167549]
[1747148561024,0.02555129,103210.0,103200.0,4.21085189]
[1747148561229,0.04492859,103210.0,103200.0,2.76072692]
[1747148561436,0.0449284,103210.0,103200.0,1.74492498]
[1747148561642,0.05461728,103210.0,103200.0,1.29971352]
[1747148561850,0.28039695,103210.0,103200.0,1.10591508]
[1747148562082,0.26102021,103210.0,103200.0,1.09241852]
[1747148562893,0.25133161,103210.0,103200.0,0.69262008]
[1747148563065,0.25137161,103210.0,103200.0,1.16594852]
[1747148563282,0.25137161,103210.0,103200.0,0.97215008]
[1747148563494,0.25137161,103210.0,103200.0,0.95778224]
[1747148563701,0.25137161,103210.0,103200.0,1.11126568]
[1747148565665,0.06036934,103210.0,103200.0,1.44947792]
[1747148565862,0.27973733,103210.0,103200.0,1.11126568]
[1747148566431,0.07005756,103210.0,103200.0,1.11126568]
[1747148567034,0.08595756,103210.0,103200.0,1.11126568]
[1747148567279,0.07626868,103210.0,103200.0,1.11126568]
[1747148567478,0.04496868,103210.0,103200.0,1.44947792]
[1747148568338,0.08585747,103210.0,103200.0,0.88630857]
[1747148568573,0.09554645,103210.0,103200.0,0.88630857]
[1747148569326,0.2796378,103210.0,103200.0,0.88630857]
[1747148570778,0.08585813,103210.0,103200.0,0.88630857]
[1747148570984,0.07616915,103210.0,103200.0,0.88630857]
[1747148571194,0.08585813,103210.0,103200.0,0.88630857]
[1747148572178,0.2796378,103210.0,103200.0,0.88630857]
[1747148572657,0.2602605,103210.0,103200.0,0.88630857]
[1747148575415,0.06638291,103210.0,103200.0,1.23421073]
[1747148575625,0.0448717,103210.0,103200.0,1.90558181]
[1747148575765,0.04487161,103210.0,103200.0,1.91527163]
[1747148575986,0.04487161,103210.0,103200.0,1.91527173]
[1747148576193,0.04487161,103210.0,103200.0,1.90558181]
[1747148576389,0.0448717,103210.0,103200.0,1.91527173]
[1747148576591,0.04487161,103210.0,103200.0,1.90558181]
[1747148576842,0.01580617,103210.0,103200.0,1.91527173]
[1747148577000,0.01580617,103210.0,103200.0,1.96024035]
[1747148577206,0.0254944,103210.0,103200.0,1.93465119]
[1747148577414,0.0254944,103210.0,103200.0,1.94434064]
[1747148577824,0.01580617,103210.0,103200.0,2.0666393]
[1747148578058,0.0254943,103210.0,103200.0,2.0666393]
[1747148578239,0.01580617,103210.0,103200.0,2.0666393]
[1747148580476,0.01580617,103210.0,103200.0,2.0818393]
[1747148580693,0.01580617,103210.0,103200.0,2.09638015]
[1747148581814,0.01580617,103210.0,103200.0,2.10038015]
[1747148582288,0.01580617,103210.0,103200.0,2.09838015]
[1747148582497,0.01580617,103210.0,103200.0,2.10238015]
[1747148583149,0.01580617,103210.0,103200.0,2.10038015]
[1747148583393,0.0316,103240.0,103230.0,0.55307586]
[1747148583604,0.02905671,103240.0,103230.0,4.18492852]
[1747148583822,0.00968541,103240.0,103230.0,3.57100297]
[1747148584028,0.24457402,103250.0,103240.0,0.19372336]
[1747148584236,0.25440471,103250.0,103240.0,0.5319356]
[1747148584462,0.24472014,103250.0,103240.0,0.5319356]
[1747148584682,0.24479503,103240.0,103230.0,0.53378212]
[1747148584914,0.24479503,103240.0,103230.0,0.87199436]
[1747148585134,0.23510943,103240.0,103230.0,0.97183724]
[1747148585356,0.23610943,103240.0,103230.0,0.97183724]
[1747148585582,0.23610943,103240.0,103230.0,1.16557936]
[1747148586264,0.23610943,103240.0,103230.0,1.5037916]
[1747148586476,0.23610943,103240.0,103230.0,1.16557936]
[1747148587026,0.23610943,103240.0,103230.0,0.87199436]
[1747148587229,0.23610943,103240.0,103230.0,3.15015436]
[1747148587445,0.0520711,103240.0,103230.0,3.50774043]
[1747148587642,0.0520711,103240.0,103230.0,3.49805361]
[1747148587845,0.06175698,103240.0,103230.0,3.49805361]
[1747148588176,0.06175698,103240.0,103230.0,3.4980537]
[1747148588384,0.06175698,103240.0,103230.0,3.08867246]
[1747148588624,0.07144305,103240.0,103230.0,3.11470201]
[1747148588756,0.06175698,103240.0,103230.0,2.98846311]
[1747148588962,0.2651665,103240.0,103230.0,2.01873601]
[1747148589173,0.07144314,103240.0,103230.0,1.90144101]
[1747148589376,0.07144305,103240.0,103230.0,1.82216701]
[1747148589853,0.07144305,103240.0,103230.0,1.83185411]
[1747148589854,0.06175698,103240.0,103230.0,1.83185411]
[1747148590051,0.07144305,103240.0,103230.0,1.73777401]
[1747148590248,0.06175698,103240.0,103230.0,1.74746111]
[1747148590825,0.06175698,103240.0,103230.0,1.73777401]
[1747148591019,0.06175698,103240.0,103230.0,1.74746111]
[1747148591454,0.07144305,103240.0,103230.0,1.73777401]
[1747148591834,0.26516641,103240.0,103230.0,1.65099801]
[1747148592063,0.06175698,103240.0,103230.0,1.37617801]
[1747148592268,0.07144296,103240.0,103230.0,1.37617801]
[1747148592473,0.07144296,103240.0,103230.0,1.38586511]
[1747148592930,0.07144296,103240.0,103230.0,1.37617801]
[1747148593074,0.27485239,103240.0,103230.0,1.03796577]
[1747148593300,0.24579541,103240.0,103230.0,0.37575665]
[1747148593488,0.24583541,103240.0,103230.0,0.71396889]
[1747148593698,0.24583541,103240.0,103230.0,0.90771101]
[1747148594266,0.05211205,103240.0,103230.0,0.90771101]
[1747148594513,0.02632541,103240.0,103230.0,2.08391217]
[1747148594763,0.02041101,103240.0,103230.0,2.08391217]
[1747148595035,0.00104,103240.0,103230.0,2.21589483]
[1747148595278,0.00104,103240.0,103230.0,2.23169483]
[1747148596221,4e-05,103240.0,103230.0,2.23369483]
[1747148596469,4e-05,103240.0,103230.0,2.23569483]
[1747148598891,4e-05,103240.0,103230.0,1.89569483]
[1747148600733,4e-05,103240.0,103230.0,2.23569483]
[1747148601928,4e-05,103240.0,103230.0,2.20459483]
[1747148602176,0.25412073,103240.0,103230.0,1.08262065]
[1747148602397,0.24443522,103240.0,103230.0,0.71796889]
[1747148602647,0.24443522,103240.0,103230.0,4.33168083]
[1747148602648,4e-05,103240.0,103230.0,4.33168083]
[1747148602856,4e-05,103240.0,103230.0,4.34678083]
[1747148603279,0.0194111,103240.0,103230.0,3.33546548]
[1747148603501,0.04162532,103240.0,103230.0,1.58585202]
[1747148603837,0.04162532,103240.0,103230.0,1.59553846]
[1747148604222,0.03194,103240.0,103230.0,1.59553846]
[1747148604436,4e-05,103240.0,103230.0,1.61173846]
[1747148605287,0.03094,103240.0,103230.0,1.55679165]
[1747148605523,0.03094,103240.0,103230.0,1.56647866]
[1747148605524,0.05031111,103240.0,103230.0,1.56647866]
[1747148605780,0.04062551,103240.0,103230.0,1.57616539]
[1747148606018,0.04062551,103240.0,103230.0,1.58585202]
[1747148606452,0.04062551,103240.0,103230.0,1.57616539]
[1747148606900,0.04062551,103240.0,103230.0,1.58585202]
[1747148607072,0.03094,103240.0,103230.0,1.58585202]
[1747148607306,0.04062541,103240.0,103230.0,1.59553856]
[1747148607508,0.0599967,103240.0,103230.0,1.56647875]
[1747148607780,0.04062541,103240.0,103230.0,1.58585229]
[1747148608434,0.03094,103240.0,103230.0,1.59553873]
[1747148608768,0.02492541,103240.0,103230.0,1.59553883]
[1747148608991,0.02492541,103240.0,103230.0,1.58585229]
[1747148609207,0.03461101,103240.0,103230.0,1.58585239]
[1747148609422,0.02492541,103240.0,103230.0,1.38598002]
[1747148609634,0.02492541,103240.0,103230.0,4.34136802]
[1747148610284,0.02492541,103240.0,103230.0,3.08258602]
[1747148610505,0.03461101,103240.0,103230.0,3.07289939]
[1747148610707,0.02492541,103240.0,103230.0,3.08258602]
[1747148610912,0.04152541,103240.0,103230.0,3.08258602]
[1747148611133,0.04152541,103240.0,103230.0,3.06321266]
[1747148611344,0.05121101,103240.0,103230.0,2.56866548]
[1747148611548,0.25462063,103240.0,103230.0,1.87624401]
[1747148611756,0.25462063,103240.0,103230.0,0.91171101]
[1747148611969,0.07058334,103240.0,103230.0,0.91171101]
[1747148612613,0.06089727,103240.0,103230.0,1.60703601]
[1747148612825,0.06089717,103240.0,103230.0,1.94524825]
[1747148613030,0.06089717,103240.0,103230.0,1.95493535]
[1747148613235,0.06089717,103240.0,103230.0,1.94524825]
[1747148613445,0.07058315,103240.0,103230.0,1.72900925]
[1747148613710,0.07058315,103240.0,103230.0,1.68561925]
[1747148613930,0.07058315,103240.0,103230.0,1.69530635]
[1747148614107,0.06089717,103240.0,103230.0,1.68561925]
[1747148614337,0.06089717,103240.0,103230.0,1.69530635]
[1747148614546,0.07058315,103240.0,103230.0,1.69530635]
[1747148614762,0.06089717,103240.0,103230.0,1.68561925]
[1747148615195,0.07058324,103240.0,103230.0,1.41316825]
[1747148615412,0.06089717,103240.0,103230.0,1.42285526]
[1747148615631,0.06089717,103240.0,103230.0,1.42285535]
[1747148616062,0.05121129,103240.0,103230.0,1.42285535]
[1747148616257,0.06089727,103240.0,103230.0,1.42285535]
[1747148616766,0.06089717,103240.0,103230.0,1.42285535]
[1747148617248,0.03184,103240.0,103230.0,1.43254236]
[1747148617469,0.0346111,103240.0,103230.0,1.44222918]
[1747148617669,0.04062541,103240.0,103230.0,1.45191581]
[1747148617890,0.06968305,103240.0,103230.0,1.45191581]
[1747148618116,0.05398296,103240.0,103230.0,1.46160235]
[1747148618332,4e-05,103240.0,103230.0,1.55891109]
[1747148618570,4e-05,103240.0,103230.0,1.57481109]
[1747148618801,4e-05,103240.0,103230.0,1.59061109]
[1747148621491,4e-05,103240.0,103230.0,1.60515194]
[1747148622963,4e-05,103240.0,103230.0,1.44190694]
[1747148623168,4e-05,103240.0,103230.0,4.39729494]
[1747148624003,0.00010556,103250.0,103240.0,1.25426521]
[1747148624221,0.00010556,103250.0,103240.0,3.96875037]
[1747148624440,0.00979003,103250.0,103240.0,3.95369037]
[1747148624652,0.06065954,103250.0,103240.0,2.78299306]
[1747148624865,0.06065945,103250.0,103240.0,2.24856506]
[1747148625090,0.06065945,103250.0,103240.0,1.98158244]
[1747148625314,0.05097469,103250.0,103240.0,2.1753058]
[1747148625579,0.04129003,103250.0,103240.0,2.19467775]
[1747148625792,0.04129003,103250.0,103240.0,2.20436326]
[1747148626230,0.05097469,103250.0,103240.0,2.20436326]
[1747148626430,0.05097469,103250.0,103240.0,0.96382626]
[1747148626648,0.06065963,103250.0,103240.0,3.91921426]
[1747148626863,0.05097469,103250.0,103240.0,3.91921426]
[1747148627268,0.06065954,103250.0,103240.0,3.91921426]
[1747148627484,0.25436471,103250.0,103240.0,2.55545258]
[1747148627724,0.24468005,103250.0,103240.0,1.01105806]
[1747148627983,0.06066068,103250.0,103240.0,1.01105806]
[1747148628192,0.25436528,103250.0,103240.0,1.01105806]
[1747148628406,0.25436528,103250.0,103240.0,1.00137227]
[1747148628617,0.25436528,103250.0,103240.0,1.01105825]
[1747148628830,0.25436528,103250.0,103240.0,1.02074413]
[1747148629044,0.25436528,103250.0,103240.0,1.03042982]
[1747148629484,0.25436528,103250.0,103240.0,1.02074413]
[1747148629700,0.25436528,103250.0,103240.0,1.03042992]
[1747148630953,0.23499539,103250.0,103240.0,0.77465484]
[1747148631167,0.23499539,103250.0,103240.0,0.97806436]
[1747148633054,0.23499539,103250.0,103240.0,0.98775043]
[1747148633670,0.22531016,103250.0,103240.0,0.97806436]
[1747148634285,0.22535016,103250.0,103240.0,0.97806436]
[1747148634490,0.22535016,103250.0,103240.0,0.98775043]
[1747148635274,0.22535016,103250.0,103240.0,0.99743631]
[1747148635491,0.25440519,103250.0,103240.0,1.007122]
[1747148635678,0.03571536,103250.0,103240.0,1.01680695]
[1747148635907,0.23910509,103250.0,103240.0,1.01680695]
[1747148636115,0.26539032,103250.0,103240.0,1.01680695]
[1747148636290,0.26539032,103250.0,103240.0,1.00712144]
[1747148638095,0.07168572,103250.0,103240.0,1.01680695]
[1747148638312,0.26539032,103250.0,103240.0,1.01680695]
[1747148638519,0.26539032,103250.0,103240.0,0.71132324]
[1747148639620,0.26539032,103250.0,103240.0,0.72100884]
[1747148639621,0.24879032,103250.0,103240.0,0.72100884]
[1747148639799,0.03888572,103250.0,103240.0,0.72100884]
[1747148640003,0.23259032,103250.0,103240.0,0.72100884]
[1747148640227,0.26429032,103250.0,103240.0,0.72100884]
[1747148640364,0.26429032,103250.0,103240.0,1.05132324]
[1747148640978,0.26429032,103250.0,103240.0,1.06100884]
[1747148641849,0.26429032,103250.0,103240.0,1.05132324]
[1747148643075,0.05121536,103250.0,103240.0,1.06100875]
[1747148643278,0.25460519,103250.0,103240.0,1.06100875]
[1747148643707,0.25460519,103250.0,103240.0,1.05132324]
[1747148643911,0.05121536,103250.0,103240.0,1.06100875]